[Event "Veteran-SM 65+ 2025"]
[Site "Uppsala, Sweden"]
[Date "2025.07.06"]
[Round "9.1"]
[White "Johansson, Jan"]
[Black "Marttala, Thomas"]
[Result "1-0"]
[TimeControl "90 min for 40 move + 30 min with an increment of 30 sec starting move 1"]
[WhiteTitle "IM"]
[WhiteFideId "1700103"]
[BlackFideId "1701118"]
[WhiteElo "2258"]
[BlackElo "2123"]

1. d4 {[%clk 01:30:56]} {[%emt 00:00:03]} d5 {[%clk 01:27:57]} {[%emt
00:03:02]} 2. Nf3 {[%clk 01:31:12]} {[%emt 00:00:15]} Nf6 {[%clk 01:27:06]}
{[%emt 00:01:21]} 3. c4 {[%clk 01:31:32]} {[%emt 00:00:09]} e6 {[%clk
01:27:06]} {[%emt 00:00:31]} 4. Nc3 {[%clk 01:31:39]} {[%emt 00:00:23]} c6
{[%clk 01:26:24]} {[%emt 00:01:13]} 5. Bg5 {[%clk 01:31:45]} {[%emt 00:00:24]}
Nbd7 {[%clk 01:18:10]} {[%emt 00:08:44]} 6. e3 {[%clk 01:31:28]} {[%emt
00:00:46]} h6 {[%clk 01:18:22]} {[%emt 00:00:18]} 7. Bh4 {[%clk 01:31:45]}
{[%emt 00:00:13]} Be7 {[%clk 01:18:32]} {[%emt 00:00:21]} 8. Bd3 {[%clk
01:31:53]} {[%emt 00:00:21]} Nh5 {[%clk 01:09:29]} {[%emt 00:09:34]} 9. Bxe7
{[%clk 01:19:01]} {[%emt 00:13:21]} Qxe7 {[%clk 01:09:49]} {[%emt 00:00:10]} 10.
Ne5 {[%clk 01:19:14]} {[%emt 00:00:17]} Nhf6 {[%clk 01:07:01]} {[%emt
00:03:17]} 11. f4 {[%clk 01:18:28]} {[%emt 00:01:18]} c5 {[%clk 00:52:55]}
{[%emt 00:14:37]} 12. O-O {[%clk 01:12:27]} {[%emt 00:06:30]} O-O {[%clk
00:51:05]} {[%emt 00:02:19]} 13. Qf3 {[%clk 01:04:55]} {[%emt 00:08:01]} dxc4
{[%clk 00:42:34]} {[%emt 00:09:02]} 14. Bxc4 {[%clk 01:04:46]} {[%emt
00:00:40]} Nb6 {[%clk 00:42:30]} {[%emt 00:00:32]} 15. Bb3 {[%clk 01:04:56]}
{[%emt 00:00:21]} cxd4 {[%clk 00:40:06]} {[%emt 00:02:54]} 16. exd4 {[%clk
01:05:18]} {[%emt 00:00:09]} Rd8 {[%clk 00:33:14]} {[%emt 00:07:21]} 17. Rad1
{[%clk 01:02:19]} {[%emt 00:03:29]} Qb4 {[%clk 00:27:27]} {[%emt 00:06:17]} 18.
Ne2 {[%clk 00:51:19]} {[%emt 00:11:29]} Nbd5 {[%clk 00:26:03]} {[%emt
00:01:55]} 19. g4 {[%clk 00:48:55]} {[%emt 00:02:54]} Qe7 {[%clk 00:18:49]}
{[%emt 00:07:44]} 20. Ng3 {[%clk 00:44:39]} {[%emt 00:04:46]} Nh7 {[%clk
00:12:25]} {[%emt 00:06:54]} 21. Ne4 {[%clk 00:43:17]} {[%emt 00:01:52]} Bd7
{[%clk 00:09:28]} {[%emt 00:03:28]} 22. Qg3 {[%clk 00:33:33]} {[%emt 00:10:14]}
Be8 {[%clk 00:08:48]} {[%emt 00:01:10]} 23. g5 {[%clk 00:25:08]} {[%emt
00:08:54]} f5 {[%clk 00:06:13]} {[%emt 00:03:05]} 24. gxf6 {[%clk 00:23:17]}
{[%emt 00:02:22]} Nhxf6 {[%clk 00:06:26]} {[%emt 00:00:16]} 25. Nxf6+ {[%clk
00:23:35]} {[%emt 00:00:12]} Qxf6 {[%clk 00:05:58]} {[%emt 00:00:58]} 26. Ng4
{[%clk 00:23:58]} {[%emt 00:00:07]} Qg6 {[%clk 00:05:57]} {[%emt 00:00:31]} 27.
f5 {[%clk 00:24:13]} {[%emt 00:00:15]} exf5 {[%clk 00:05:49]} {[%emt 00:00:38]}
28. Rxf5 {[%clk 00:24:31]} {[%emt 00:00:11]} Bf7 {[%clk 00:05:08]} {[%emt
00:01:12]} 29. Rxf7 {[%clk 00:24:49]} {[%emt 00:00:13]} 1-0

[Event "Veteran-SM 65+ 2025"]
[Site "Uppsala, Sweden"]
[Date "2025.07.06"]
[Round "9.2"]
[White "Andersson, Anders"]
[Black "Malmdin, Nils-Ake"]
[Result "1-0"]
[TimeControl "90 min for 40 move + 30 min with an increment of 30 sec starting move 1"]
[BlackTitle "FM"]
[WhiteFideId "1738259"]
[BlackFideId "1701584"]
[WhiteElo "1991"]
[BlackElo "2103"]

1. e4 {[%clk 01:30:53]} {[%emt 00:00:06]} d5 {[%clk 01:30:00]} {[%emt
00:01:00]} 2. exd5 {[%clk 01:30:51]} {[%emt 00:00:33]} Nf6 {[%clk 01:30:20]}
{[%emt 00:00:09]} 3. Nf3 {[%clk 01:30:57]} {[%emt 00:00:24]} Nxd5 {[%clk
01:30:00]} {[%emt 00:00:50]} 4. d4 {[%clk 01:30:45]} {[%emt 00:00:42]} g6
{[%clk 01:29:42]} {[%emt 00:00:48]} 5. c4 {[%clk 01:28:48]} {[%emt 00:02:27]}
Nb6 {[%clk 01:29:16]} {[%emt 00:00:56]} 6. Bd2 {[%clk 01:20:13]} {[%emt
00:09:05]} Bg7 {[%clk 01:25:59]} {[%emt 00:03:47]} 7. Bc3 {[%clk 01:20:07]}
{[%emt 00:00:37]} N8d7 {[%clk 01:05:51]} {[%emt 00:20:38]} 8. a4 {[%clk
01:16:52]} {[%emt 00:03:45]} a5 {[%clk 01:03:19]} {[%emt 00:03:01]} 9. Qd2
{[%clk 01:04:09]} {[%emt 00:13:13]} Nf6 {[%clk 01:03:13]} {[%emt 00:00:36]} 10.
Bd3 {[%clk 01:03:39]} {[%emt 00:00:59]} Bg4 {[%clk 00:53:27]} {[%emt 00:10:17]}
11. Ne5 {[%clk 01:02:35]} {[%emt 00:01:34]} Bd7 {[%clk 00:42:43]} {[%emt
00:11:13]} 12. b3 {[%clk 01:01:55]} {[%emt 00:01:11]} Bc8 {[%clk 00:42:46]}
{[%emt 00:00:27]} 13. Bc2 {[%clk 00:56:35]} {[%emt 00:05:50]} O-O {[%clk
00:41:15]} {[%emt 00:02:01]} 14. O-O {[%clk 00:53:18]} {[%emt 00:03:47]} Bf5
{[%clk 00:35:10]} {[%emt 00:06:34]} 15. Bxf5 {[%clk 00:49:59]} {[%emt
00:03:50]} gxf5 {[%clk 00:35:32]} {[%emt 00:00:07]} 16. f3 {[%clk 00:49:30]}
{[%emt 00:00:59]} Nfd7 {[%clk 00:34:43]} {[%emt 00:01:20]} 17. Nd3 {[%clk
00:45:36]} {[%emt 00:04:25]} e6 {[%clk 00:34:16]} {[%emt 00:00:57]} 18. Na3
{[%clk 00:44:59]} {[%emt 00:01:07]} c6 {[%clk 00:34:00]} {[%emt 00:00:45]} 19.
Nc2 {[%clk 00:44:44]} {[%emt 00:00:45]} Nc8 {[%clk 00:33:46]} {[%emt 00:00:44]}
20. Rab1 {[%clk 00:42:03]} {[%emt 00:03:11]} b6 {[%clk 00:33:21]} {[%emt
00:00:55]} 21. Rfd1 {[%clk 00:40:22]} {[%emt 00:02:11]} Qf6 {[%clk 00:30:06]}
{[%emt 00:03:45]} 22. Bb2 {[%clk 00:40:17]} {[%emt 00:00:35]} Bh6 {[%clk
00:29:58]} {[%emt 00:00:38]} 23. Qe2 {[%clk 00:39:59]} {[%emt 00:00:47]} Qg5
{[%clk 00:27:50]} {[%emt 00:02:38]} 24. Bc1 {[%clk 00:37:41]} {[%emt 00:02:49]}
Qg7 {[%clk 00:27:38]} {[%emt 00:00:42]} 25. Ne5 {[%clk 00:35:07]} {[%emt
00:03:04]} Bxc1 {[%clk 00:26:31]} {[%emt 00:01:35]} 26. Nxd7 {[%clk 00:33:20]}
{[%emt 00:02:19]} Bf4 {[%clk 00:26:07]} {[%emt 00:00:53]} 27. Nxf8 {[%clk
00:33:24]} {[%emt 00:00:27]} Qxf8 {[%clk 00:25:20]} {[%emt 00:01:17]} 28. g3
{[%clk 00:31:09]} {[%emt 00:02:45]} Bd6 {[%clk 00:25:18]} {[%emt 00:00:31]} 29.
f4 {[%clk 00:31:04]} {[%emt 00:00:36]} Ne7 {[%clk 00:25:10]} {[%emt 00:00:38]}
30. Ne1 {[%clk 00:30:54]} {[%emt 00:00:39]} Qg7 {[%clk 00:24:40]} {[%emt
00:01:00]} 31. Qg2 {[%clk 00:27:59]} {[%emt 00:03:26]} Kh8 {[%clk 00:24:31]}
{[%emt 00:00:39]} 32. Qf3 {[%clk 00:23:56]} {[%emt 00:04:33]} Rg8 {[%clk
00:22:53]} {[%emt 00:02:08]} 33. Kh1 {[%clk 00:21:39]} {[%emt 00:02:47]} Qf6
{[%clk 00:22:26]} {[%emt 00:00:56]} 34. Ng2 {[%clk 00:19:44]} {[%emt 00:02:26]}
Qg6 {[%clk 00:20:43]} {[%emt 00:02:11]} 35. Rb2 {[%clk 00:18:57]} {[%emt
00:01:20]} Rc8 {[%clk 00:20:06]} {[%emt 00:01:06]} 36. Rbd2 {[%clk 00:18:40]}
{[%emt 00:00:47]} Bb4 {[%clk 00:19:27]} {[%emt 00:01:08]} 37. Rd3 {[%clk
00:18:37]} {[%emt 00:00:34]} h6 {[%clk 00:13:59]} {[%emt 00:05:58]} 38. Qe2
{[%clk 00:18:23]} {[%emt 00:00:44]} Bd6 {[%clk 00:13:43]} {[%emt 00:00:44]} 39.
Nh4 {[%clk 00:17:54]} {[%emt 00:01:01]} Qg7 {[%clk 00:12:13]} {[%emt 00:02:00]}
40. Nf3 {[%clk 00:16:43]} {[%emt 00:01:41]} Kh7 {[%clk 00:12:07]} {[%emt
00:00:36]} 41. Ne5 {[%clk 00:16:31]} {[%emt 00:00:42]} Kg8 {[%clk 00:05:26]}
{[%emt 00:07:09]} 42. Nd7 {[%clk 00:14:14]} {[%emt 00:02:49]} Bc7 {[%clk
00:04:18]} {[%emt 00:01:38]} 43. Rg1 {[%clk 00:10:51]} {[%emt 00:03:53]} Rd8
{[%clk 00:03:32]} {[%emt 00:01:17]} 44. g4 {[%clk 00:08:26]} {[%emt 00:02:54]}
Rxd7 {[%clk 00:24:03]} {[%emt 00:10:00]} 45. gxf5 {[%clk 00:38:33]} {[%emt
00:00:22]} Qxg1+ {[%clk 00:24:26]} {[%emt 00:00:07]} 46. Kxg1 {[%clk 00:38:55]}
{[%emt 00:00:08]} Nxf5 {[%clk 00:24:46]} {[%emt 00:00:10]} 47. Qg2+ {[%clk
00:36:55]} {[%emt 00:02:29]} Kf8 {[%clk 00:23:51]} {[%emt 00:01:26]} 48. Qxc6
{[%clk 00:37:00]} {[%emt 00:00:24]} Ke7 {[%clk 00:24:08]} {[%emt 00:00:13]} 49.
Qe4 {[%clk 00:35:11]} {[%emt 00:02:19]} Bd6 {[%clk 00:23:36]} {[%emt 00:01:03]}
50. Kf1 {[%clk 00:34:08]} {[%emt 00:01:34]} 1-0

[Event "Veteran-SM 65+ 2025"]
[Site "Uppsala, Sweden"]
[Date "2025.07.06"]
[Round "9.3"]
[White "Hogberg, Thomas"]
[Black "Sigeman, Johan"]
[Result "0-1"]
[TimeControl "90 min for 40 move + 30 min with an increment of 30 sec starting move 1"]
[WhiteFideId "1706039"]
[BlackFideId "1705601"]
[WhiteElo "1979"]
[BlackElo "2012"]

1. d4 {[%clk 01:29:59]} {[%emt 00:01:00]} Nf6 {[%clk 01:30:22]} {[%emt
00:00:38]} 2. Nf3 {[%clk 01:30:19]} {[%emt 00:00:10]} e6 {[%clk 01:29:10]}
{[%emt 00:01:43]} 3. Bf4 {[%clk 01:29:39]} {[%emt 00:01:09]} d5 {[%clk
01:28:45]} {[%emt 00:00:56]} 4. e3 {[%clk 01:29:56]} {[%emt 00:00:13]} c5
{[%clk 01:27:53]} {[%emt 00:01:22]} 5. c3 {[%clk 01:30:18]} {[%emt 00:00:08]}
Bd6 {[%clk 01:28:03]} {[%emt 00:00:20]} 6. Bg3 {[%clk 01:30:30]} {[%emt
00:00:18]} Qc7 {[%clk 01:27:58]} {[%emt 00:00:35]} 7. Bd3 {[%clk 01:30:42]}
{[%emt 00:00:17]} Nbd7 {[%clk 01:28:15]} {[%emt 00:00:14]} 8. Nbd2 {[%clk
01:28:25]} {[%emt 00:02:47]} e5 {[%clk 01:28:10]} {[%emt 00:00:35]} 9. e4
{[%clk 01:26:00]} {[%emt 00:02:54]} dxe4 {[%clk 01:21:36]} {[%emt 00:07:05]} 10.
Nxe4 {[%clk 01:25:38]} {[%emt 00:00:52]} Nxe4 {[%clk 01:21:16]} {[%emt
00:00:51]} 11. Bxe4 {[%clk 01:26:00]} {[%emt 00:00:07]} exd4 {[%clk 01:16:43]}
{[%emt 00:05:02]} 12. cxd4 {[%clk 01:25:38]} {[%emt 00:00:52]} Nf6 {[%clk
01:13:57]} {[%emt 00:03:17]} 13. Qd3 {[%clk 01:19:44]} {[%emt 00:06:24]} O-O
{[%clk 01:09:31]} {[%emt 00:04:56]} 14. Bxd6 {[%clk 01:15:59]} {[%emt
00:04:15]} Qxd6 {[%clk 01:09:54]} {[%emt 00:00:07]} 15. O-O {[%clk 01:16:17]}
{[%emt 00:00:13]} cxd4 {[%clk 00:59:50]} {[%emt 00:10:33]} 16. Rfe1 {[%clk
01:08:42]} {[%emt 00:08:04]} Bg4 {[%clk 00:55:08]} {[%emt 00:05:12]} 17. Qxd4
{[%clk 01:05:27]} {[%emt 00:03:46]} Qxd4 {[%clk 00:51:04]} {[%emt 00:04:34]} 18.
Nxd4 {[%clk 01:05:22]} {[%emt 00:00:35]} Rad8 {[%clk 00:50:33]} {[%emt
00:01:00]} 19. Nb3 {[%clk 01:02:20]} {[%emt 00:03:32]} b6 {[%clk 00:49:09]}
{[%emt 00:01:55]} 20. Bc2 {[%clk 00:49:37]} {[%emt 00:13:12]} a5 {[%clk
00:44:29]} {[%emt 00:05:11]} 21. f3 {[%clk 00:48:33]} {[%emt 00:01:34]} Be6
{[%clk 00:44:23]} {[%emt 00:00:36]} 22. Rad1 {[%clk 00:48:51]} {[%emt
00:00:11]} g6 {[%clk 00:37:45]} {[%emt 00:07:09]} 23. Kf2 {[%clk 00:44:04]}
{[%emt 00:05:17]} Rxd1 {[%clk 00:34:16]} {[%emt 00:04:00]} 24. Rxd1 {[%clk
00:43:42]} {[%emt 00:00:50]} Rc8 {[%clk 00:34:36]} {[%emt 00:00:10]} 25. Rd2
{[%clk 00:44:03]} {[%emt 00:00:10]} Kf8 {[%clk 00:33:14]} {[%emt 00:01:52]} 26.
a3 {[%clk 00:43:29]} {[%emt 00:01:05]} Rxc2 {[%clk 00:31:31]} {[%emt 00:02:12]}
27. Rxc2 {[%clk 00:43:50]} {[%emt 00:00:09]} Bxb3 {[%clk 00:32:00]} 28. Rd2
{[%clk 00:43:07]} {[%emt 00:01:12]} Ke7 {[%clk 00:30:15]} {[%emt 00:02:15]} 29.
Ke3 {[%clk 00:40:59]} {[%emt 00:02:38]} a4 {[%clk 00:22:41]} {[%emt 00:08:05]}
30. g3 {[%clk 00:40:22]} {[%emt 00:01:06]} h5 {[%clk 00:22:36]} {[%emt
00:00:35]} 31. h4 {[%clk 00:38:37]} {[%emt 00:02:15]} Nd5+ {[%clk 00:11:47]}
{[%emt 00:11:20]} 32. Ke4 {[%clk 00:36:02]} {[%emt 00:03:04]} Ke6 {[%clk
00:11:59]} {[%emt 00:00:18]} 33. g4 {[%clk 00:35:46]} {[%emt 00:00:46]} f5+
{[%clk 00:06:45]} {[%emt 00:05:45]} 34. gxf5+ {[%clk 00:35:04]} {[%emt
00:01:13]} gxf5+ {[%clk 00:07:13]} {[%emt 00:00:01]} 35. Kd4 {[%clk 00:35:09]}
{[%emt 00:00:23]} Ne7 {[%clk 00:07:10]} {[%emt 00:00:34]} 36. Rg2 {[%clk
00:32:08]} {[%emt 00:03:30]} Bd5 {[%clk 00:05:01]} {[%emt 00:02:41]} 37. Ke3
{[%clk 00:31:24]} {[%emt 00:01:14]} Kf6 {[%clk 00:04:07]} {[%emt 00:01:23]} 38.
Rg5 {[%clk 00:27:55]} {[%emt 00:03:58]} Bf7 {[%clk 00:04:19]} {[%emt 00:00:19]}
39. f4 {[%clk 00:26:15]} {[%emt 00:02:10]} Nd5+ {[%clk 00:02:46]} {[%emt
00:02:03]} 40. Kf3 {[%clk 00:26:36]} {[%emt 00:00:09]} b5 {[%clk 00:02:27]}
{[%emt 00:00:50]} 41. Rg1 {[%clk 00:25:41]} {[%emt 00:01:25]} Nb6 {[%clk
00:02:11]} {[%emt 00:00:46]} 42. Re1 {[%clk 00:22:28]} {[%emt 00:03:43]} Nc4
{[%clk 00:01:09]} {[%emt 00:01:32]} 43. Re2 {[%clk 00:22:51]} {[%emt 00:00:07]}
Bd5+ {[%clk 00:01:04]} {[%emt 00:00:35]} 44. Kf2 {[%clk 00:23:01]} {[%emt
00:00:19]} Be4 {[%clk 00:00:44]} {[%emt 00:00:50]} 45. Ke1 {[%clk 00:23:11]}
{[%emt 00:00:19]} Ke6 {[%clk 00:30:05]} {[%emt 00:01:11]} 46. Kd1 {[%clk
00:51:40]} {[%emt 00:02:00]} Kd5 {[%clk 00:30:19]} {[%emt 00:00:16]} 47. Kc1
{[%clk 00:52:05]} {[%emt 00:00:06]} Kd4 {[%clk 00:30:18]} {[%emt 00:00:31]} 48.
Re1 {[%clk 00:52:28]} {[%emt 00:00:06]} Ne3 {[%clk 00:28:13]} {[%emt 00:02:35]}
49. Rg1 {[%clk 00:50:43]} {[%emt 00:02:15]} Ng2 {[%clk 00:28:00]} {[%emt
00:00:44]} 50. Kd2 {[%clk 00:51:03]} {[%emt 00:00:10]} Nxh4 {[%clk 00:27:33]}
{[%emt 00:00:57]} 0-1

[Event "Veteran-SM 65+ 2025"]
[Site "Uppsala, Sweden"]
[Date "2025.07.06"]
[Round "9.4"]
[White "Franchuck, Ivan"]
[Black "Larsson, Per-Olov"]
[Result "1-0"]
[TimeControl "90 min for 40 move + 30 min with an increment of 30 sec starting move 1"]
[WhiteFideId "14140187"]
[BlackFideId "1717774"]
[WhiteElo "2006"]
[BlackElo "1914"]

1. Nf3 {[%clk 01:30:57]} {[%emt 00:00:02]} Nf6 {[%clk 01:30:33]} {[%emt
00:00:28]} 2. c4 {[%clk 01:31:16]} {[%emt 00:00:10]} e6 {[%clk 01:30:32]}
{[%emt 00:00:32]} 3. g3 {[%clk 01:31:34]} {[%emt 00:00:11]} d5 {[%clk
01:30:30]} {[%emt 00:00:32]} 4. b3 {[%clk 01:31:53]} {[%emt 00:00:11]} Be7
{[%clk 01:29:49]} {[%emt 00:01:11]} 5. Bg2 {[%clk 01:32:14]} {[%emt 00:00:09]}
b6 {[%clk 01:29:13]} {[%emt 00:01:07]} 6. O-O {[%clk 01:32:28]} {[%emt
00:00:14]} Bb7 {[%clk 01:29:21]} {[%emt 00:00:23]} 7. Bb2 {[%clk 01:32:29]}
{[%emt 00:00:29]} O-O {[%clk 01:29:04]} {[%emt 00:00:48]} 8. d4 {[%clk
01:28:50]} {[%emt 00:04:07]} Nbd7 {[%clk 01:24:30]} {[%emt 00:05:06]} 9. cxd5
{[%clk 01:28:11]} {[%emt 00:01:08]} exd5 {[%clk 01:23:47]} {[%emt 00:01:14]} 10.
Nc3 {[%emt 00:07:07]} Ne4 {[%clk 01:18:28]} 11. Qc2 {[%clk 01:25:38]} {[%emt
00:02:14]} Ndf6 {[%clk 01:11:39]} {[%emt 00:07:19]} 12. Ne5 {[%clk 01:24:47]}
{[%emt 00:01:19]} Nxc3 {[%clk 01:06:41]} {[%emt 00:05:30]} 13. Qxc3 {[%clk
01:24:04]} {[%emt 00:01:14]} Bd6 {[%clk 01:05:40]} {[%emt 00:01:31]} 14. Rac1
{[%clk 01:21:29]} {[%emt 00:03:04]} Qe7 {[%clk 01:02:49]} {[%emt 00:03:20]} 15.
e3 {[%clk 01:21:16]} {[%emt 00:00:44]} Rfc8 {[%clk 01:00:04]} {[%emt 00:03:15]}
16. Bh3 {[%clk 01:20:34]} {[%emt 00:01:11]} Rf8 {[%clk 00:57:36]} {[%emt
00:02:59]} 17. Nc6 {[%clk 01:20:39]} {[%emt 00:00:24]} Qe8 {[%clk 00:57:00]}
{[%emt 00:01:08]} 18. Rfd1 {[%clk 01:18:12]} {[%emt 00:02:56]} Bc8 {[%clk
00:52:07]} {[%emt 00:05:23]} 19. Bg2 {[%clk 01:17:49]} {[%emt 00:00:52]} Bb7
{[%clk 00:49:24]} {[%emt 00:03:14]} 20. Re1 {[%clk 01:15:42]} {[%emt 00:02:36]}
Bxc6 {[%clk 00:42:43]} {[%emt 00:07:12]} 21. Qxc6 {[%clk 01:15:46]} {[%emt
00:00:26]} Qxc6 {[%clk 00:42:42]} {[%emt 00:00:31]} 22. Rxc6 {[%clk 01:16:13]}
{[%emt 00:00:03]} Rfe8 {[%clk 00:42:47]} {[%emt 00:00:26]} 23. f3 {[%emt
00:07:25]} Re6 {[%clk 00:38:22]} 24. e4 {[%clk 01:13:04]} {[%emt 00:01:37]}
Bxg3 {[%clk 00:33:08]} {[%emt 00:05:45]} 25. Rxe6 {[%clk 01:12:57]} {[%emt
00:00:37]} Bxe1 {[%clk 00:33:26]} {[%emt 00:00:12]} 26. Rc6 {[%clk 01:13:13]}
{[%emt 00:00:13]} Ne8 {[%clk 00:32:14]} {[%emt 00:01:43]} 27. e5 {[%clk
01:10:29]} {[%emt 00:03:14]} Bb4 {[%clk 00:25:58]} {[%emt 00:06:46]} 28. f4
{[%clk 01:05:45]} {[%emt 00:04:19]} Rd8 {[%clk 00:25:56]} {[%emt 00:01:27]} 29.
h4 {[%clk 01:03:09]} {[%emt 00:03:05]} Be7 {[%clk 00:19:49]} {[%emt 00:06:38]}
30. h5 {[%clk 01:03:28]} {[%emt 00:00:11]} f6 {[%clk 00:17:40]} {[%emt
00:02:39]} 31. Bh3 {[%clk 01:03:10]} {[%emt 00:00:47]} g6 {[%clk 00:15:25]}
{[%emt 00:02:46]} 32. Be6+ {[%clk 00:59:41]} {[%emt 00:03:59]} Kg7 {[%clk
00:15:23]} {[%emt 00:00:32]} 33. Bg4 {[%clk 00:55:58]} {[%emt 00:04:12]} f5
{[%clk 00:14:46]} {[%emt 00:01:08]} 34. Be2 {[%clk 00:56:04]} {[%emt 00:00:24]}
Kf7 {[%clk 00:11:56]} {[%emt 00:03:20]} 35. hxg6+ {[%clk 00:54:58]} {[%emt
00:01:36]} hxg6 {[%clk 00:12:19]} {[%emt 00:00:07]} 36. Bb5 {[%clk 00:55:18]}
{[%emt 00:00:09]} Rc8 {[%clk 00:11:36]} {[%emt 00:01:13]} 37. Ba6 {[%emt
00:02:01]} Rb8 {[%emt 00:00:29]} 38. a4 {[%clk 00:52:37]} {[%emt 00:00:42]} Rd8
{[%clk 00:08:34]} {[%emt 00:03:32]} 39. Kf2 {[%clk 00:52:31]} {[%emt 00:00:35]}
Bb4 {[%clk 00:08:00]} {[%emt 00:01:03]} 40. Ke3 {[%clk 00:52:13]} {[%emt
00:00:50]} Kg7 {[%clk 00:05:28]} {[%emt 00:03:02]} 41. Bb5 {[%clk 00:52:02]}
{[%emt 00:00:40]} Rc8 {[%clk 00:03:53]} {[%emt 00:02:07]} 42. Kd3 {[%clk
00:52:00]} {[%emt 00:00:31]} Kf7 {[%clk 00:01:03]} {[%emt 00:03:20]} 43. Bc1
{[%emt 00:04:04]} Ra8 {[%clk 00:30:04]} 44. Kc2 {[%clk 01:17:55]} {[%emt
00:02:28]} a6 {[%clk 00:28:28]} {[%emt 00:02:07]} 45. Be2 {[%clk 01:18:12]}
{[%emt 00:00:12]} a5 {[%clk 00:26:33]} {[%emt 00:02:26]} 46. Be3 {[%emt
00:00:31]} Be7 {[%emt 00:02:07]} 47. Bd2 {[%clk 01:15:00]} {[%emt 00:01:03]}
Rd8 {[%clk 00:25:54]} {[%emt 00:01:10]} 48. Bb5 {[%clk 01:14:37]} {[%emt
00:00:53]} Rc8 {[%clk 00:25:42]} {[%emt 00:00:42]} 49. Kb2 {[%clk 01:13:15]}
{[%emt 00:01:52]} Bf8 {[%clk 00:19:28]} {[%emt 00:06:44]} 50. Be1 {[%clk
01:11:15]} {[%emt 00:02:30]} Be7 {[%clk 00:19:42]} {[%emt 00:00:14]} 51. b4
{[%clk 01:09:59]} {[%emt 00:01:48]} axb4 {[%clk 00:19:17]} {[%emt 00:00:56]} 52.
Kb3 {[%clk 01:10:16]} {[%emt 00:00:12]} Ng7 {[%clk 00:12:58]} {[%emt 00:06:49]}
53. Ba6 {[%clk 01:10:25]} {[%emt 00:00:20]} Ra8 {[%clk 00:13:23]} {[%emt
00:00:05]} 54. Bb7 {[%clk 01:10:45]} {[%emt 00:00:11]} Ra7 {[%clk 00:12:07]}
{[%emt 00:01:47]} 55. Bc8 {[%clk 01:10:24]} {[%emt 00:00:50]} Ra8 {[%clk
00:07:27]} {[%emt 00:05:11]} 56. Rxc7 {[%clk 01:10:03]} {[%emt 00:00:50]} Ne8
{[%clk 00:07:29]} {[%emt 00:00:29]} 57. Rc6 {[%clk 01:09:29]} {[%emt 00:01:03]}
Kg7 {[%clk 00:06:30]} {[%emt 00:01:29]} 58. Bd7 {[%clk 01:03:46]} {[%emt
00:06:12]} Rd8 {[%clk 00:05:14]} {[%emt 00:01:46]} 59. Bxe8 {[%clk 01:03:46]}
{[%emt 00:00:30]} Rxe8 {[%clk 00:05:37]} {[%emt 00:00:08]} 60. Rxb6 {[%clk
01:03:27]} {[%emt 00:00:49]} Rh8 {[%clk 00:05:44]} {[%emt 00:00:23]} 61. Bxb4
{[%clk 01:02:53]} {[%emt 00:01:04]} Rh3+ {[%clk 00:05:50]} {[%emt 00:00:24]} 62.
Bc3 {[%clk 01:03:04]} {[%emt 00:00:19]} Rf3 {[%clk 00:05:51]} {[%emt 00:00:29]}
63. a5 {[%clk 01:02:54]} {[%emt 00:00:40]} Rf1 {[%clk 00:04:56]} {[%emt
00:01:25]} 64. a6 {[%clk 01:02:58]} {[%emt 00:00:25]} 1-0

[Event "Veteran-SM 65+ 2025"]
[Site "Uppsala, Sweden"]
[Date "2025.07.06"]
[Round "9.5"]
[White "Korning, Peter"]
[Black "Carlsson, Ingvar"]
[Result "1/2-1/2"]
[TimeControl "90 min for 40 move + 30 min with an increment of 30 sec starting move 1"]
[WhiteFideId "1723332"]
[BlackFideId "1702670"]
[WhiteElo "1944"]
[BlackElo "1987"]

1. e4 {[%clk 01:30:55]} {[%emt 00:00:04]} e6 {[%clk 01:30:48]} {[%emt
00:00:12]} 2. d4 {[%clk 01:31:15]} {[%emt 00:00:10]} d5 {[%clk 01:31:11]}
{[%emt 00:00:08]} 3. Nc3 {[%clk 01:31:30]} {[%emt 00:00:14]} Nf6 {[%clk
01:31:28]} {[%emt 00:00:14]} 4. e5 {[%clk 01:31:50]} {[%emt 00:00:09]} Nfd7
{[%clk 01:31:49]} {[%emt 00:00:08]} 5. Nf3 {[%clk 01:32:08]} {[%emt 00:00:11]}
c5 {[%clk 01:32:04]} {[%emt 00:00:17]} 6. dxc5 {[%clk 01:32:29]} {[%emt
00:00:09]} Bxc5 {[%clk 01:30:48]} {[%emt 00:01:45]} 7. Bd3 {[%clk 01:32:47]}
{[%emt 00:00:12]} Nc6 {[%clk 01:30:23]} {[%emt 00:00:56]} 8. Bf4 {[%clk
01:31:03]} {[%emt 00:02:13]} Be7 {[%clk 01:23:51]} {[%emt 00:07:03]} 9. Bg3
{[%clk 01:14:46]} {[%emt 00:16:45]} O-O {[%clk 01:22:15]} {[%emt 00:02:07]} 10.
O-O {[%clk 01:09:45]} {[%emt 00:05:31]} b6 {[%clk 01:03:46]} {[%emt 00:19:00]}
11. Re1 {[%clk 00:58:12]} {[%emt 00:12:02]} a5 {[%clk 01:02:58]} {[%emt
00:01:18]} 12. a3 {[%clk 00:49:07]} {[%emt 00:09:36]} Ba6 {[%clk 01:01:51]}
{[%emt 00:01:37]} 13. Bxa6 {[%clk 00:49:20]} {[%emt 00:00:17]} Rxa6 {[%clk
01:02:13]} {[%emt 00:00:08]} 14. Qe2 {[%clk 00:48:57]} {[%emt 00:00:51]} Ra8
{[%clk 01:00:44]} {[%emt 00:02:01]} 15. Rad1 {[%clk 00:43:29]} {[%emt
00:05:57]} Qc8 {[%clk 00:44:43]} {[%emt 00:16:31]} 1/2-1/2